[Event "2nd Bassano Easter 2022"]
[Site "Bassano del Grappa"]
[Date "2022.04.15"]
[Round "4.4"]
[White "Postny, Evgeny"]
[Black "Petkidis, Anthony"]
[Result "1/2-1/2"]
[ECO "A61"]
[WhiteElo "2567"]
[BlackElo "2420"]
[Annotator "TA"]
[PlyCount "67"]
[EventDate "2022.04.14"]
[EventType "swiss"]
[EventCountry "ITA"]
[SourceTitle "playchess.com"]
[Source "ChessBase"]
[SourceQuality "1"]
[TimeControl "30/3600+30:1800+30"]

{[%evp 18,67,33,37,56,56,62,67,78,52,48,21,28,11,25,18,34,24,31,0,13,-4,21,-6,0,0,0,0,41,0,0,0,0,0,0,0,0,0,0,0,0,0,47,35,66,0,0,-4,0,-9,-2,-31]} 1. d4 {[%emt 0:00:03]} Nf6 {[%emt 0:01:10]} 2. c4 {[%emt 0:00:16]} e6 {[%emt 0:00:50]} 3. Nf3 {[%emt 0:00:06]} c5 {[%emt 0:00:23]} 4. d5 {[%emt 0:00:13]} exd5 {[%emt 0:00:30]} 5. cxd5 {[%emt 0:00:30]} d6 {[%emt 0:00:30]} 6. Nc3 {[%emt 0:00:30]} g6 {[%emt 0:00:00]} 7. Bf4 {[%emt 0:00:00]} a6 {[%emt 0:00:22]} 8. a4 {[%emt 0:00:00]} Bg7 {[%emt 0:00:30]} 9. h3 {[%emt 0:00:24]} O-O {[%emt 0:00:30]} 10. e3 {[%emt 0:00:30]} Re8 {[%emt 0:00:30] A61: Modern Benoni: Nf3 without early e4.} 11. Nd2 {[%emt 0:00:30] Inhibits Ne4.} Nbd7 {[%emt 0:00:30]} 12. Be2 {[%emt 0:00:30]} ({But not} 12. Bxd6 Nb6 13. Bxc5 Nfxd5 $11) 12... Ne5 {[%emt 0:00:30] White is slightly better.} 13. O-O {[%emt 0:00:30]} Nfd7 {[%emt 0:00:30]} 14. e4 {[%emt 0:00:30]} g5 {[%emt 0:00:30]} 15. Bh2 {[%emt 0:00:30]} Nf8 {[%emt 0:00:30] [#]} 16. Bxe5 $146 {[%emt 0:00:30]} ({Predecessor:} 16. Nf3 Nfg6 17. Nxe5 Nxe5 18. Qd2 g4 19. f4 gxf3 20. Bxf3 Nc4 21. Qe2 Ne3 22. Rfe1 {1-0 (38) Mahalakshmi,M (2125)-Isha,S (1666) Bihar 2014}) 16... Bxe5 {[%emt 0:00:30]} 17. Bg4 {[%emt 0:00:30]} Ng6 {[%emt 0:00:30][%cal Bf8g6,Bg6e5,Be5d7,Bd7c5][%mdl 32]} 18. g3 {[%emt 0:00:30]} Qf6 {[%emt 0:00:30]} 19. Ra3 {[%emt 0:00:30]} Bd4 {[%emt 0:00:30]} 20. Rb3 {[%emt 0:00:30]} Ne5 {[%emt 0:00:30]} 21. Bxc8 {[%emt 0:00:30]} Raxc8 {[%emt 0:00:30]} 22. Ne2 {[%emt 0:00:30][%cal Bc3e2,Be2d4,Bd4f5][%mdl 32]} c4 {[%emt 0:00:30] [#]} 23. Nxd4 {[%emt 0:00:30]} cxb3 {[%emt 0:00:30]} 24. Qxb3 {[%emt 0:00:30]} Nd7 {[%emt 0:00:30]} 25. Nf5 {[%emt 0:00:30]} Nc5 {[%emt 0:00:30][%csl LRb3,LRe4]} 26. Qa3 {[%emt 0:00:30]} Rcd8 {[%emt 0:00:30]} 27. f3 {[%emt 0:00:30] Threatens to win with Nc4.} b5 {[%emt 0:00:30] Inhibits Nc4.} 28. a5 {[%emt 0:00:30]} Rc8 {[%emt 0:00:30]} 29. Rf2 {[%emt 0:00:30]} Rc7 {[%emt 0:00:30]} (29... Nb7 $11 {might be stronger.}) 30. Nf1 $14 {[%emt 0:00:30] Pair of Knights!} h5 {[%emt 0:00:30]} 31. Qe3 {[%emt 0:30:30]} (31. g4 $1 $14) 31... Qxf5 $11 {[%emt 0:30:30] The position is equal.} 32. exf5 {[%emt 0:00:30]} Rxe3 {[%emt 0:00:30]} 33. Nxe3 {[%emt 0:00:30]} Re7 {[%emt 0:00:30]} 34. Nf1 {[%emt 0:00:30] Weighted Error Value: White=0.12 (very precise) /Black=0.07 (flawless)} 1/2-1/2

[Event "2nd Bassano Easter 2022"]
[Site "Bassano del Grappa"]
[Date "2022.04.15"]
[Round "4.5"]
[White "Nikolov, Momchil"]
[Black "Kolb, Tobias"]
[Result "1/2-1/2"]
[ECO "D55"]
[WhiteElo "2501"]
[BlackElo "2316"]
[Annotator "TA"]
[PlyCount "41"]
[EventDate "2022.04.14"]
[EventType "swiss"]
[EventCountry "ITA"]
[SourceTitle "playchess.com"]
[Source "ChessBase"]
[SourceQuality "1"]
[TimeControl "30/3600+30:1800+30"]

{[%evp 18,41,6,9,9,0,24,14,24,-39,-29,-35,-13,-53,-25,-25,-25,-20,-26,-18,-21,-41,-48,-49,-47,-26]} 1. d4 {[%emt 1:01:00]} d5 {[%emt 1:01:00]} 2. c4 {[%emt 0:00:30]} e6 {[%emt 0:00:30]} 3. Nc3 {[%emt 0:00:30]} Nf6 {[%emt 0:00:30]} 4. cxd5 {[%emt 0:00:30]} exd5 {[%emt 0:00:30]} 5. Bg5 {[%emt 0:00:30]} Be7 {[%emt 0:00:30]} 6. e3 {[%emt 0:00:30]} O-O {[%emt 0:00:30]} 7. Nf3 {[%emt 0:00:30]} h6 {[%emt 0:00:30]} 8. Bxf6 {[%emt 0:00:30]} Bxf6 {[%emt 0:00:30]} 9. Bd3 {[%emt 0:00:30]} c6 {[%emt 0:00:30]} 10. O-O {[%emt 0:00:30]} Be7 {[%emt 0:00:30] D55: Queen's Gambit Declined: 4 Bg5 Be7: Lines without ...h6 and 6...h6 7 Bxf6.} 11. Rb1 {[%emt 0:00:30]} a5 {[%emt 0:00:30]} 12. a3 {[%emt 0:00:30] [#]} Bd6 $146 {[%emt 0:00:30] The position is equal.} ({Predecessor:} 12... Be6 13. Qc2 Nd7 14. Bf5 Bxf5 15. Qxf5 g6 16. Qc2 Re8 17. b4 axb4 18. axb4 b5 {1-0 (80) Corrales Jimenez,F (2530)-Nguyen,T (2609) Warsaw 2021}) 13. b4 {[%emt 0:00:30]} (13. Ne5 $11) 13... Bg4 $15 {[%emt 0:00:30]} 14. Be2 {[%emt 0:00:30]} Re8 {[%emt 0:00:30]} 15. Na4 {[%emt 0:00:30]} (15. h3 $5 {[%cal Rh3g4]} Be6 16. b5 $15) 15... Qe7 {[%emt 0:00:30][%cal Ra5b4]} 16. Nc5 {[%emt 0:00:30]} b6 {[%emt 0:00:30] [#] And now ...axb4 would win.} 17. Nd3 {[%emt 0:00:30]} axb4 {[%emt 0:00:30]} 18. axb4 {[%emt 0:00:30]} Nd7 {[%emt 0:00:30]} 19. h3 {[%emt 0:00:30]} Bf5 {[%emt 0:00:30]} 20. Rc1 {[%emt 0:00:30]} Rac8 {[%emt 0:00:30]} 21. Qb3 {[%emt 0:00:30] Weighted Error Value: White=0.19 (very precise) /Black=0.08 (flawless)} 1/2-1/2

[Event "2nd Bassano Easter 2022"]
[Site "Bassano del Grappa"]
[Date "2022.04.15"]
[Round "4.6"]
[White "Fischer, Daniel"]
[Black "Abel, Dennes"]
[Result "1-0"]
[ECO "B12"]
[WhiteElo "2356"]
[BlackElo "2442"]
[Annotator "TA"]
[PlyCount "43"]
[EventDate "2022.04.14"]
[EventType "swiss"]
[EventCountry "ITA"]
[SourceTitle "playchess.com"]
[Source "ChessBase"]
[SourceQuality "1"]
[TimeControl "30/3600+30:1800+30"]

{[%evp 13,43,12,22,8,35,16,7,0,70,0,56,74,203,120,200,168,276,184,587,560,553,570,574,573,576,562,1185,1140,1093,1143,1129,1077]} 1. e4 {[%emt 0:00:03]} c6 {[%emt 0:01:36]} 2. d4 {[%emt 0:00:06]} d5 {[%emt 0:00:08]} 3. e5 {[%emt 0:00:04]} Bf5 {[%emt 0:00:09]} 4. Nf3 {[%emt 0:00:04]} e6 {[%emt 0:00:07]} 5. Be2 {[%emt 0:00:03]} c5 {[%emt 0:00:15]} 6. Be3 {[%emt 0:00:23]} Qb6 {[%emt 0:00:20]} 7. Nc3 {[%emt 0:00:26]} Nc6 {[%emt 0:00:10]} (7... Qxb2 8. Nb5 $16) 8. O-O {[%emt 0:00:16] B12: Caro-Kann: Advance Variation.} Qxb2 {[%emt 0:00:09]} 9. Qe1 {[%emt 0:00:42] Threatens to win with Rb1.} (9. Nb5 $5 {[%cal Rb5c7]} Rc8 10. c4 $16) 9... c4 {[%emt 0:00:08]} ({Don't take} 9... Bxc2 10. dxc5 Bg6 11. a3 $16) 10. Rb1 {[%emt 0:07:52] The position is equal.} Qa3 {[%emt 0:00:29]} (10... Qxc2 $11 11. Bd1 (11. Rxb7 O-O-O $11) 11... Qxb1 12. Nxb1 Bxb1) 11. Rxb7 {[%emt 0:18:48] [#]} (11. Nb5 $14 Qa4 12. Nc7+ Kd7 13. Nxa8) 11... Qa6 $146 {[%emt 0:22:07]} (11... Bb4 $11 12. Nb5 Bxe1 13. Nxa3 Nd8) ({Predecessor:} 11... Bb4 12. Nb5 Bxe1 13. Nxa3 Nd8 14. Rb1 Ba5 15. Nh4 Be4 16. f3 Bg6 17. f4 Be4 {0-1 (26) Kravtsiv,M (2625)-Van Foreest,J (2691) Riga 2021}) 12. Qb1 $1 $14 {[%emt 0:02:22][%cal Oc3b5]} O-O-O {[%emt 0:13:52]} (12... Nd8 $16 {is a better defense.} 13. Rb5 h6) 13. Rb5 {[%emt 0:03:35]} ({White should play} 13. Rxf7 $18 {Hoping for Nh4.} Nge7 14. Ng5) 13... h6 {[%emt 0:02:39]} (13... Qa3 $16) 14. a4 $18 {[%emt 0:00:56]} g5 {[%emt 0:04:54]} (14... Nge7 $142 15. Qb2 Rd7) 15. Qb2 {[%emt 0:03:10] Strongly threatening Nd2.} f6 $2 {[%emt 0:00:34]} (15... Nge7 {is more resistant.} 16. Rb1 Rg8) 16. Rb1 {[%emt 0:07:58] White is clearly winning.} Rh7 {[%emt 0:00:35]} 17. Nd2 {[%emt 0:04:39]} Rc7 {[%emt 0:00:54] [#]} 18. Nxc4 {[%emt 0:02:10][%mdl 512]} dxc4 {[%emt 0:10:37]} 19. Bxc4 {[%emt 0:00:05]} Re8 {[%emt 0:01:51] [#]} 20. Rb8+ $1 {[%emt 0:02:29][%mdl 576] Discovered Attack} Nxb8 {[%emt 0:00:08]} (20... Kd7 21. Rxe8) 21. Bxa6+ {[%emt 0:00:03]} Nxa6 {[%emt 0:00:09] [#]} 22. Qb5 $1 {[%emt 0:00:16][%csl LRa6,LRe8] Black got outplayed after the opening.  Weighted Error Value: White=0.24 (precise) /Black=0.67} 1-0

[Event "2nd Bassano Easter 2022"]
[Site "Bassano del Grappa"]
[Date "2022.04.15"]
[Round "4.7"]
[White "Fier, Alexandr"]
[Black "Hommer, Jeremy"]
[Result "1-0"]
[ECO "E51"]
[WhiteElo "2583"]
[BlackElo "2220"]
[Annotator "TA"]
[PlyCount "51"]
[EventDate "2022.04.14"]
[EventType "swiss"]
[EventCountry "ITA"]
[SourceTitle "playchess.com"]
[Source "ChessBase"]
[SourceQuality "1"]
[TimeControl "30/3600+30:1800+30"]

{[%evp 13,51,0,0,-6,0,-25,17,2,36,33,56,63,62,48,61,41,77,75,89,68,182,181,181,190,242,242,242,235,260,271,251,243,261,258,502,369,29984,29985,29998,29999]} 1. d4 {[%emt 0:00:03]} e6 {[%emt 0:00:07]} 2. c4 {[%emt 0:00:03]} Nf6 {[%emt 0:00:06]} 3. Nc3 {[%emt 0:00:03]} Bb4 {[%emt 0:00:06]} 4. e3 {[%emt 0:00:04]} O-O {[%emt 0:00:45]} 5. Bd2 {[%emt 0:00:04]} d5 {[%emt 0:03:17]} 6. Nf3 {[%emt 0:00:06]} b6 {[%emt 0:02:21]} 7. cxd5 {[%emt 0:00:05]} exd5 {[%emt 0:01:11]} 8. Bd3 {[%emt 0:00:05] E51: Nimzo-Indian: Rubinstein: 4...0-0 5 Nf3 d5.} Re8 {[%emt 0:10:42]} 9. Qc2 {[%emt 0:00:07]} Bxc3 {[%emt 0:03:12]} 10. Bxc3 {[%emt 0:00:08] The position is equal.} Bb7 {[%emt 0:00:31]} 11. O-O {[%emt 0:00:20]} Nbd7 {[%emt 0:00:34] [#]} 12. b4 $146 {[%emt 0:00:16]} ({Predecessor:} 12. Rac1 Qe7 13. b4 c5 14. dxc5 bxc5 15. Bxf6 Nxf6 16. bxc5 Rac8 17. Nd4 Qe5 18. Bb5 {1-0 (27) Nudo,D (1809)-Frydendal,O (1712) ICCF email 2014}) 12... Ne4 {[%emt 0:03:56]} 13. Bb2 {[%emt 0:00:35]} c6 {[%emt 0:09:03]} 14. a4 {[%emt 0:00:44][%cal Ba2a4,Ba4a5][%mdl 32]} a6 {[%emt 0:00:49]} 15. a5 {[%emt 0:03:21]} b5 {[%emt 0:04:45]} 16. Ne5 {[%emt 0:00:03]} Rc8 {[%emt 0:01:43] [#]} (16... Ndf6 $14) 17. f3 $1 $18 {[%emt 0:02:31]} ({Don't take} 17. Bxe4 $6 dxe4 18. Nxd7 (18. Qxe4 f6 $17) 18... Qxd7 $14) 17... Nef6 {[%emt 0:00:38] [#]} 18. Nxd7 $1 {[%emt 0:00:09]} Nxd7 {[%emt 0:05:26]} (18... Qxd7 {is a better defense.} 19. Bf5 Qe7) 19. Bxh7+ {[%emt 0:00:06]} Kh8 {[%emt 0:00:36]} 20. Bf5 {[%emt 0:00:05]} Rxe3 {[%emt 0:03:28]} 21. Bc1 {[%emt 0:00:03][%cal Bb2c1,Bc1g5,Bg5f4][%mdl 32]} Re8 {[%emt 0:01:24] [#]} 22. Bg5 $1 {[%emt 0:00:06][%mdl 512]} f6 {[%emt 0:02:29]} 23. Bf4 {[%emt 1:02:53] Black must now prevent Bd6.} Ra8 $2 {[%emt 0:01:33]} (23... Nf8 {was called for.} 24. Bxc8 Qxc8) 24. Bg6 {[%emt 0:00:00] Hoping for Qf5. This bishop pair is nice.} Re6 $2 {[%emt 0:01:23]} (24... Re7 $18 25. Bd6 (25. Qf5 Nf8 $16) 25... Nf8) 25. Qf5 {[%emt 0:00:00]} Nf8 {[%emt 0:00:09]} 26. Qh5+ {[%emt 0:00:00] Black did not feel at home in the position after the opening.  Weighted Error Value: White=0.11 (very precise) /Black=0.66} 1-0

[Event "2nd Bassano Easter 2022"]
[Site "Bassano del Grappa"]
[Date "2022.04.15"]
[Round "4.8"]
[White "Hess, Max"]
[Black "Wyss, Jonas"]
[Result "1-0"]
[ECO "D78"]
[WhiteElo "2395"]
[BlackElo "2265"]
[Annotator "TA"]
[PlyCount "81"]
[EventDate "2022.04.14"]
[EventType "swiss"]
[EventCountry "ITA"]
[SourceTitle "playchess.com"]
[Source "ChessBase"]
[SourceQuality "1"]
[TimeControl "30/3600+30:1800+30"]

{[%evp 14,80,12,15,18,6,20,6,35,31,44,47,59,0,0,0,0,0,0,-7,-1,-20,-11,-50,188,181,191,187,225,232,274,300,352,360,620,605,735,460,718,464,759,433,427,425,408,412,444,425,465,302,373,309,337,304,399,386,486,482,859,601,1078,1064,1057,1035,29989,29990,29989,-338,29999]} 1. d4 {[%emt 0:00:06]} Nf6 {[%emt 0:00:09]} 2. Nf3 {[%emt 0:00:03]} g6 {[%emt 0:00:13]} 3. g3 {[%emt 0:00:05]} Bg7 {[%emt 0:00:13]} 4. Bg2 {[%emt 0:00:03]} d5 {[%emt 0:00:11]} 5. O-O {[%emt 0:00:17]} O-O {[%emt 0:00:07]} 6. c4 {[%emt 0:00:05]} c6 {[%emt 0:00:09][%cal Bc7c6,Bc6c5,Bc5d4][%mdl 32]} 7. b3 {[%emt 0:00:16]} dxc4 {[%emt 0:00:35]} 8. bxc4 {[%emt 0:00:06]} c5 {[%emt 0:00:09] D78: Fianchetto Grünfeld: 6 0-0 c6.} 9. Bb2 {[%emt 0:00:17]} Qb6 {[%emt 0:01:57]} 10. Qc1 {[%emt 0:01:26]} Ne4 {[%emt 0:04:34][%cal Rc5d4] The position is equal.} 11. e3 {[%emt 0:16:32]} Nc6 {[%emt 0:04:54][%cal Rc5d4]} 12. Ne5 {[%emt 0:06:20]} Nd6 {[%emt 0:02:06] [#]} 13. Nd3 $146 {[%emt 0:06:54]} (13. Nxc6 $14 bxc6 14. Nd2) ({Predecessor:} 13. dxc5 Qxc5 14. Nxc6 bxc6 15. Bxg7 Kxg7 16. Nd2 Be6 17. Nb3 Qxc4 18. Qb2+ f6 19. Rac1 {½-½ (31) Ladva,O (2522)-Meskovs,N (2546) Chess.com INT 2018}) 13... cxd4 $11 {[%emt 0:08:44]} 14. c5 {[%emt 0:01:09]} Qb5 {[%emt 0:01:05]} 15. cxd6 {[%emt 0:00:12]} Qxd3 {[%emt 0:00:35]} 16. dxe7 {[%emt 0:00:44]} Re8 {[%emt 0:08:57]} ({Resist} 16... Nxe7 17. Rd1 Qa6 18. Bxd4 $14) 17. Rd1 {[%emt 0:02:49]} Qe2 {[%emt 0:05:48] And now ...dxe3 would win.} 18. exd4 {[%emt 0:06:08][%cal Be3d4,Bd4d5][%mdl 32]} Rxe7 $2 {[%emt 0:02:16]} (18... Qxe7 $15 {stays ahead.} 19. d5 Ne5) 19. Nc3 $36 {[%emt 0:02:52][%cal Bb1c3,Bc3d5,Bd5f4][%mdl 2080] Keeping Black busy. White now steadily converts the win.} Qh5 {[%emt 0:08:11]} 20. Nd5 $1 {[%emt 0:11:24]} Rd7 {[%emt 0:00:14]} 21. Nf4 {[%emt 0:03:44]} Qb5 {[%emt 0:00:22][%cal Rc6d4]} 22. Rb1 {[%emt 0:00:19]} Qa4 {[%emt 0:01:36][%cal Rc6d4]} 23. d5 {[%emt 0:00:42]} Nd4 $2 {[%emt 0:09:45]} (23... Bxb2 24. Qxb2 Rd6) 24. Qe3 {[%emt 0:00:48] Hoping for Qe8+.} Nf5 {[%emt 0:00:55]} 25. Qe8+ {[%emt 0:00:14]} Bf8 {[%emt 0:00:04]} 26. Bh3 {[%emt 0:03:49]} Qa5 {[%emt 0:04:41]} (26... Qa6 $142 27. Bxf5 Re7 28. Qxc8 Rxc8 29. Bxc8 Re8) 27. Bxf5 {[%emt 0:02:22][%cal Oe8e5] White wants to mate with Qe5!} Re7 {[%emt 0:00:48] Against Qe5} 28. Qxc8 {[%emt 0:00:20]} Rxc8 {[%emt 0:02:11]} 29. Bxc8 {[%emt 0:00:05] This bishop pair is nice.} Rc7 {[%emt 0:00:56]} 30. Bh3 {[%emt 0:00:00]} Rc2 {[%emt 0:00:00]} 31. Bd4 {[%emt 0:08:06]} b5 {[%emt 0:15:28]} 32. Be3 {[%emt 0:07:22] Threatens to win with d6.} Bd6 {[%emt 0:00:40]} 33. Rbc1 {[%emt 0:02:04]} Qxa2 {[%emt 0:02:09]} 34. Ra1 {[%emt 0:01:16]} Qc4 {[%emt 0:02:16]} 35. Rxa7 {[%emt 0:00:33]} b4 {[%emt 0:01:21]} (35... Ra2 $142 36. Rb7 Qb3) 36. Bd4 {[%emt 0:03:15] aiming for Ra8+.} Ra2 {[%emt 0:06:21]} 37. Rxa2 {[%emt 0:07:25]} Qxa2 {[%emt 0:00:06]} 38. Ra1 {[%emt 0:00:05]} Qc4 {[%emt 0:00:10]} 39. Ra8+ {[%emt 0:00:38]} Bf8 {[%emt 0:00:05] [#]} 40. Nxg6 $4 {[%mdl 8192]} fxg6 $4 {[%mdl 8192]} (40... hxg6 $19 41. Be3 b3) 41. Be6# {[%emt 0:00:13] Weighted Error Value: White=0.65/Black=0.99} 1-0

[Event "2nd Bassano Easter 2022"]
[Site "Bassano del Grappa"]
[Date "2022.04.15"]
[Round "4.9"]
[White "Schlegel, Igor"]
[Black "Baum, Jonasz"]
[Result "0-1"]
[ECO "B53"]
[WhiteElo "2139"]
[BlackElo "2287"]
[Annotator "TA"]
[PlyCount "80"]
[EventDate "2022.04.14"]
[EventType "swiss"]
[EventCountry "ITA"]
[SourceTitle "playchess.com"]
[Source "ChessBase"]
[SourceQuality "1"]
[TimeControl "30/3600+30:1800+30"]

{[%evp 9,80,11,6,6,12,0,2,0,18,-69,0,0,23,15,21,0,0,-21,-7,-16,22,27,27,28,27,24,33,25,31,23,52,15,0,-49,-39,-245,-236,-245,-253,-240,-239,-247,-229,-229,-243,-219,-221,-218,-129,-111,-20,-19,-12,-17,0,-18,-14,-8,-12,-13,-15,-10,-12,-13,-12,-230,-243,-247,-225,-277,-250,-227,-226]} 1. e4 {[%emt 0:02:06]} c5 {[%emt 0:00:06]} 2. Nf3 {[%emt 0:00:04]} d6 {[%emt 0:00:07]} 3. d4 {[%emt 0:00:05]} cxd4 {[%emt 0:00:04]} 4. Qxd4 {[%emt 0:00:07]} Nf6 {[%emt 0:00:18]} 5. Be2 {[%emt 0:00:07]} g6 {[%emt 0:01:14]} 6. O-O {[%emt 0:02:36] B53: Sicilian: 2...d6: Lines with Qxd4.} Bg7 {[%emt 0:00:04]} 7. h3 {[%emt 0:00:41]} O-O {[%emt 0:00:08]} 8. Rd1 {[%emt 0:00:36] The position is equal.} Be6 {[%emt 0:08:47] [#]} 9. Nc3 $146 {[%emt 0:02:03] [#]} (9. Ng5 $11) ({Predecessor:} 9. c4 Nbd7 10. Nc3 Rc8 11. Bg5 b6 12. Rac1 a6 13. b3 Qc7 14. Qe3 Rfe8 15. Nd5 Bxd5 16. cxd5 {1-0 (39) Mazi,L (2360)-Delgado,A (2116) Chess.com INT 2020}) 9... Nbd7 {[%emt 0:11:54]} ({Black should try} 9... Nd5 $1 $15 10. e5 (10. Qd3 Nxc3) 10... Nxc3 11. Qxc3 Nc6) 10. Qe3 $11 {[%emt 0:02:11]} Qc7 {[%emt 0:02:30]} 11. Nd4 {[%emt 0:09:17]} Bc4 {[%emt 0:00:49]} 12. Bxc4 {[%emt 0:00:27]} Qxc4 {[%emt 0:00:01]} 13. b3 {[%emt 0:00:21]} Qc5 {[%emt 0:02:58]} 14. Bb2 {[%emt 0:01:23]} Rfe8 {[%emt 0:01:08]} 15. Na4 {[%emt 0:10:08]} Qc7 {[%emt 0:15:01]} 16. c4 {[%emt 0:00:54]} a6 {[%emt 0:00:12][%cal Ob7b5]} 17. Rac1 {[%emt 0:01:43]} Rad8 {[%emt 0:00:37]} 18. Nc3 {[%emt 0:09:11]} e6 {[%emt 0:00:11][%cal Od6d5]} 19. Nf3 {[%emt 0:07:16]} Nc5 {[%emt 0:10:07][%cal Of6e4]} 20. b4 {[%emt 0:10:49]} Ncd7 {[%emt 0:00:27]} 21. Qd4 {[%emt 0:05:33]} (21. c5 $11 dxc5 22. e5) 21... Nb6 {[%emt 0:03:49]} 22. Nb5 $2 {[%emt 0:03:10]} axb5 $19 {[%emt 0:00:43]} 23. cxb5 {[%emt 0:00:03]} Qb8 {[%emt 0:01:49]} (23... e5 24. Rxc7 exd4 25. Rxb7 (25. Bxd4 Na4 $17)) 24. Qxb6 {[%emt 0:00:25]} Nd7 {[%emt 0:00:18][%mdl 64] Discovered Attack} 25. Qxd6 {[%emt 0:00:15]} Bxb2 {[%emt 0:00:16]} 26. Qxb8 {[%emt 0:00:28]} Nxb8 {[%emt 0:00:10]} ({But not} 26... Rxb8 27. Rc2 Nf6 28. e5 $16 (28. Rxb2 Nxe4 29. Rc2 Nf6 $16)) 27. Rxd8 {[%emt 0:00:04]} Rxd8 {[%emt 0:00:03]} 28. Rc7 {[%emt 0:00:06] [#]} b6 {[%emt 0:00:47]} (28... Rd1+ $1 $19 29. Kh2 Nd7 30. Rxb7 Ba3) 29. a4 $17 {[%emt 0:00:41]} Nd7 {[%emt 0:04:51]} ({Better is} 29... Ba3 $17 30. Rc4 Rd1+ 31. Kh2 Nd7) 30. a5 $11 {[%emt 0:00:00]} Ne5 {[%emt 0:00:00][%cal Bd7e5,Be5d3,Bd3e1][%mdl 32] ...Rd1+ is the strong threat.} 31. Ne1 $1 {[%emt 0:06:58]} Nd3 {[%emt 0:36:31]} 32. Rc2 {[%emt 0:24:38] Black must now prevent Nxd3.} Nxe1 {[%emt 0:00:00]} 33. Rxb2 {[%emt 0:00:01][%mdl 4096] Endgame KRN-KR} Rd1 {[%emt 0:00:00][%cal Re1f3]} ({Don't do} 33... Nd3 34. Rd2 $14) 34. Kh2 {[%emt 0:00:01]} Nd3 {[%emt 0:00:00]} 35. Rc2 {[%emt 0:00:14]} Nxb4 {[%emt 0:00:47]} 36. Rc8+ {[%emt 0:00:08]} Kg7 {[%emt 0:00:00]} 37. axb6 {[%emt 0:00:10]} (37. a6 $1 $11 {and White stays safe.} Ra1 38. Rb8) 37... Rd7 $19 {[%emt 0:00:05]} 38. Rc7 {[%emt 0:00:06] [#]} Rd6 {[%emt 0:00:56]} ({And not} 38... Rd8 39. b7 Rb8 40. Kg3 $11) 39. Rc4 {[%emt 0:00:08] Strongly threatening e5.} Nd3 {[%emt 0:00:19]} 40. Rc6 {[%emt 0:00:07]} Rd8 {[%emt 0:00:48] Weighted Error Value: White=0.35/Black=0.15 (very precise)} 0-1